[Event "*** Titled Tuesday Blitz"]
[Site "Chess.com"]
[Date "2020.05.05"]
[Round "8"]
[White "VALPARAISO37"]
[Black "tteshan"]
[Result "1-0"]
[WhiteElo "2394"]
[BlackElo "2215"]
[TimeControl "180+1"]
[EndTime "11:38:42 PDT"]
[Termination "VALPARAISO37 won by resignation"]

1. d4 {[%clk 0:03:00.9]} 1... Nf6 {[%clk 0:02:55.2]} 2. c4 {[%clk 0:02:59.7]}
2... e6 {[%clk 0:02:52.9]} 3. Nc3 {[%clk 0:02:58]} 3... Bb4 {[%clk 0:02:50.4]}
4. a3 {[%clk 0:02:58.6]} 4... Bxc3+ {[%clk 0:02:49.9]} 5. bxc3 {[%clk
0:02:59.3]} 5... b6 {[%clk 0:02:50.3]} 6. e3 {[%clk 0:02:59.2]} 6... Bb7 {[%clk
0:02:50.1]} 7. f3 {[%clk 0:02:59.8]} 7... O-O {[%clk 0:02:48.6]} 8. Bd3 {[%clk
0:02:59.9]} 8... d6 {[%clk 0:02:47.3]} 9. Ne2 {[%clk 0:02:59.5]} 9... Nbd7
{[%clk 0:02:43.6]} 10. e4 {[%clk 0:02:58.6]} 10... e5 {[%clk 0:02:42.4]} 11. Ng3
{[%clk 0:02:58.1]} 11... Re8 {[%clk 0:02:32.9]} 12. O-O {[%clk 0:02:57.4]} 12...
Nf8 {[%clk 0:02:27]} 13. a4 {[%clk 0:02:55.1]} 13... a5 {[%clk 0:02:24.3]} 14.
Be3 {[%clk 0:02:49.4]} 14... Qd7 {[%clk 0:02:11.1]} 15. h3 {[%clk 0:02:47.2]}
15... Ne6 {[%clk 0:02:06.1]} 16. d5 {[%clk 0:02:33.3]} 16... Nc5 {[%clk
0:02:02.6]} 17. Bg5 {[%clk 0:02:32.4]} 17... Qd8 {[%clk 0:01:27.5]} 18. Nh5
{[%clk 0:02:27.6]} 18... Ncd7 {[%clk 0:01:26.2]} 19. f4 {[%clk 0:02:25.6]} 19...
h6 {[%clk 0:01:21.6]} 20. Bh4 {[%clk 0:02:21.1]} 20... exf4 {[%clk 0:01:15.2]}
21. Nxf6+ {[%clk 0:01:58.8]} 21... Nxf6 {[%clk 0:01:11.6]} 22. Rxf4 {[%clk
0:00:51.2]} 22... g5 {[%clk 0:01:09.3]} 23. Rxf6 {[%clk 0:00:51.5]} 23... Qxf6
{[%clk 0:01:05.4]} 24. Be1 {[%clk 0:00:48.9]} 24... Re7 {[%clk 0:00:55.1]} 25.
Bd2 {[%clk 0:00:48.5]} 25... Rae8 {[%clk 0:00:51.6]} 26. Qh5 {[%clk 0:00:46.4]}
26... Bc8 {[%clk 0:00:46.2]} 27. Rf1 {[%clk 0:00:43.5]} 27... Qg6 {[%clk
0:00:36.1]} 28. Qe2 {[%clk 0:00:37.8]} 28... Re5 {[%clk 0:00:34.2]} 29. Be3
{[%clk 0:00:33.9]} 29... g4 {[%clk 0:00:24.4]} 30. hxg4 {[%clk 0:00:19.6]} 30...
Bxg4 {[%clk 0:00:25.3]} 31. Qf2 {[%clk 0:00:19.3]} 31... h5 {[%clk 0:00:18.8]}
32. Bd4 {[%clk 0:00:18.7]} 32... Rg5 {[%clk 0:00:15.3]} 33. Be3 {[%clk
0:00:17.9]} 33... Rge5 {[%clk 0:00:11.7]} 34. Bf4 {[%clk 0:00:17.8]} 34... R5e7
{[%clk 0:00:11]} 35. Qg3 {[%clk 0:00:16.9]} 35... h4 {[%clk 0:00:10.2]} 36. Qxh4
{[%clk 0:00:16.3]} 36... Rxe4 {[%clk 0:00:09.5]} 37. Qg3 {[%clk 0:00:16]} 37...
Bf5 {[%clk 0:00:05.7]} 38. Bxe4 {[%clk 0:00:15.5]} 38... Bxe4 {[%clk 0:00:05.6]}
39. Qh2 {[%clk 0:00:13.9]} 39... Qg4 {[%clk 0:00:04.8]} 40. Qg3 {[%clk
0:00:13.4]} 40... Qxg3 {[%clk 0:00:05]} 41. Bxg3 {[%clk 0:00:13.5]} 41... Bd3
{[%clk 0:00:05.5]} 42. Rf4 {[%clk 0:00:14.1]} 42... Re2 {[%clk 0:00:04.3]} 43.
Bh4 {[%clk 0:00:13.7]} 43... Rc2 {[%clk 0:00:04.7]} 44. Bf6 {[%clk 0:00:13.6]}
44... Bg6 {[%clk 0:00:02.9]} 45. Rh4 {[%clk 0:00:13.5]} 45... Bh7 {[%clk
0:00:03.2]} 46. Rg4+ {[%clk 0:00:13.1]} 46... Kf8 {[%clk 0:00:02.7]} 47. Rg3
{[%clk 0:00:13.4]} 47... Rc1+ {[%clk 0:00:03.2]} 48. Kh2 {[%clk 0:00:13.2]}
48... Rc2 {[%clk 0:00:04.1]} 49. Re3 {[%clk 0:00:12.9]} 49... Bg6 {[%clk
0:00:04.7]} 50. Be7+ {[%clk 0:00:12]} 50... Kg8 {[%clk 0:00:05]} 51. Bd8 {[%clk
0:00:12.4]} 51... Ra2 {[%clk 0:00:05.3]} 52. Bxc7 {[%clk 0:00:12.7]} 52... Rxa4
{[%clk 0:00:05.4]} 53. Bxb6 {[%clk 0:00:13.1]} 53... Rxc4 {[%clk 0:00:05.8]} 54.
Bxa5 {[%clk 0:00:13.5]} 54... Bf5 {[%clk 0:00:05.9]} 55. Bb4 {[%clk 0:00:13.6]}
55... Rc7 {[%clk 0:00:05.4]} 56. Bxd6 {[%clk 0:00:13.5]} 56... Rd7 {[%clk
0:00:05.8]} 57. Be7 {[%clk 0:00:13.1]} 57... Rxd5 {[%clk 0:00:05.8]} 58. c4
{[%clk 0:00:12.9]} 58... Rd7 {[%clk 0:00:05.4]} 59. c5 {[%clk 0:00:12.8]} 59...
Be6 {[%clk 0:00:05.7]} 60. Bf6 {[%clk 0:00:11.7]} 60... Kf8 {[%clk 0:00:05.8]}
61. Ra3 {[%clk 0:00:11.1]} 61... Kg8 {[%clk 0:00:05.8]} 62. Rg3+ {[%clk
0:00:10.2]} 62... Kh7 {[%clk 0:00:05.3]} 63. Be5 {[%clk 0:00:10.6]} 63... Rd8
{[%clk 0:00:05]} 64. Bd6 {[%clk 0:00:10.7]} 64... f6 {[%clk 0:00:04.6]} 65. Rf3
{[%clk 0:00:10.4]} 65... Kg6 {[%clk 0:00:04.5]} 66. Re3 {[%clk 0:00:10.7]} 66...
Bf5 {[%clk 0:00:04.3]} 67. Re7 {[%clk 0:00:10.3]} 67... Rc8 {[%clk 0:00:03.8]}
68. Rc7 {[%clk 0:00:10]} 68... Rh8+ {[%clk 0:00:03.2]} 69. Kg1 {[%clk
0:00:09.5]} 69... Re8 {[%clk 0:00:02.9]} 70. c6 {[%clk 0:00:09.3]} 70... Re1+
{[%clk 0:00:02.7]} 71. Kf2 {[%clk 0:00:09.6]} 71... Re8 {[%clk 0:00:03.6]} 72.
Re7 {[%clk 0:00:09.5]} 72... Rxe7 {[%clk 0:00:03.6]} 73. Bxe7 {[%clk 0:00:09.5]}
73... Kf7 {[%clk 0:00:04.2]} 74. Bd6 {[%clk 0:00:08.8]} 74... Bc8 {[%clk
0:00:04.6]} 75. Bg3 {[%clk 0:00:09.2]} 75... Ke6 {[%clk 0:00:05.1]} 76. c7
{[%clk 0:00:09.8]} 76... f5 {[%clk 0:00:05.2]} 77. Bf4 {[%clk 0:00:10]} 77...
Kf6 {[%clk 0:00:05.6]} 78. Ke3 {[%clk 0:00:10.2]} 78... Kg6 {[%clk 0:00:06]} 79.
Kd4 {[%clk 0:00:10.4]} 79... Kf7 {[%clk 0:00:06.4]} 80. Ke5 {[%clk 0:00:10.6]}
80... Ke7 {[%clk 0:00:05.9]} 81. Kd5 {[%clk 0:00:10.6]} 81... Kd7 {[%clk
0:00:05.3]} 82. g3 {[%clk 0:00:10.6]} 82... Ke7 {[%clk 0:00:04.9]} 83. Kc5
{[%clk 0:00:10.2]} 83... Kd7 {[%clk 0:00:05.2]} 84. Kb6 {[%clk 0:00:10]} 84...
Ke8 {[%clk 0:00:05.1]} 85. Kc6 {[%clk 0:00:10.4]} 85... Bd7+ {[%clk 0:00:03.9]}
86. Kd6 {[%clk 0:00:10.6]} 86... Bc8 {[%clk 0:00:04]} 87. Ke5 {[%clk 0:00:10.8]}
87... Ke7 {[%clk 0:00:03.9]} 88. Bg5+ {[%clk 0:00:11.2]} 88... Kd7 {[%clk
0:00:04]} 89. Bd8 {[%clk 0:00:11.2]} 89... Ke8 {[%clk 0:00:03.4]} 90. Kf6 {[%clk
0:00:11.1]} 90... Kd7 {[%clk 0:00:02.7]} 91. Kxf5 {[%clk 0:00:11]} 91... Ke8+
{[%clk 0:00:02.7]} 92. Kf6 {[%clk 0:00:11.3]} 92... Kd7 {[%clk 0:00:03]} 93. g4
{[%clk 0:00:11.4]} 93... Ke8 {[%clk 0:00:03.2]} 94. g5 {[%clk 0:00:11.9]} 94...
Kf8 {[%clk 0:00:03.7]} 95. g6 {[%clk 0:00:12.2]} 95... Kg8 {[%clk 0:00:04.2]}
96. Ke7 {[%clk 0:00:10.5]} 96... Bf5 {[%clk 0:00:03.8]} 97. Kf6 {[%clk
0:00:10.4]} 97... Bc8 {[%clk 0:00:03.6]} 98. Be7 {[%clk 0:00:10.6]} 98... Bd7
{[%clk 0:00:03.3]} 99. Bb4 {[%clk 0:00:10.5]} 99... Bc8 {[%clk 0:00:03.6]} 100.
Bd2 {[%clk 0:00:10.8]} 100... Bd7 {[%clk 0:00:04]} 101. Bh6 {[%clk 0:00:11.3]}
101... Bc8 {[%clk 0:00:04.4]} 102. Ke7 {[%clk 0:00:11.2]} 102... Bf5 {[%clk
0:00:04.2]} 103. Kd8 {[%clk 0:00:11.4]} 103... Kh8 {[%clk 0:00:03]} 104. c8=Q
{[%clk 0:00:10.7]} 104... Bxc8 {[%clk 0:00:03]} 105. Kxc8 {[%clk 0:00:11.4]}
105... Kg8 {[%clk 0:00:03.9]} 106. Kd7 {[%clk 0:00:11.7]} 106... Kh8 {[%clk
0:00:04.2]} 107. Ke6 {[%clk 0:00:11.9]} 107... Kg8 {[%clk 0:00:03.9]} 108. Kf5
{[%clk 0:00:11.9]} 108... Kh8 {[%clk 0:00:03.9]} 109. Bg5 {[%clk 0:00:11.6]}
109... Kg8 {[%clk 0:00:04.8]} 110. Bf6 {[%clk 0:00:11.9]} 110... Kf8 {[%clk
0:00:04.9]} 111. Kg5 {[%clk 0:00:12.1]} 111... Kg8 {[%clk 0:00:05.2]} 112. Kh6
{[%clk 0:00:11.6]} 112... Kf8 {[%clk 0:00:05.4]} 113. Kh7 {[%clk 0:00:11.5]}
113... Ke8 {[%clk 0:00:05.2]} 114. g7 {[%clk 0:00:11.9]} 114... Kd7 {[%clk
0:00:06.1]} 115. g8=Q {[%clk 0:00:12.4]} 1-0

[Event "*** Titled Tuesday Blitz"]
[Site "Chess.com"]
[Date "2020.05.05"]
[Round "8"]
[White "wonderfultime"]
[Black "Igor_Lysyj"]
[Result "1/2-1/2"]
[WhiteElo "2920"]
[BlackElo "2784"]
[TimeControl "180+1"]
[EndTime "11:38:58 PDT"]
[Termination "Game drawn by repetition"]

1. d4 {[%clk 0:03:00.9]} 1... Nf6 {[%clk 0:02:59]} 2. Nf3 {[%clk 0:03:01.5]}
2... d5 {[%clk 0:02:58.6]} 3. Bf4 {[%clk 0:03:01.7]} 3... c5 {[%clk 0:02:58.1]}
4. c3 {[%clk 0:03:01.8]} 4... Nc6 {[%clk 0:02:57.2]} 5. e3 {[%clk 0:03:02.2]}
5... Qb6 {[%clk 0:02:56.5]} 6. Qc2 {[%clk 0:02:58.3]} 6... g6 {[%clk 0:02:51.3]}
7. Nbd2 {[%clk 0:02:58]} 7... Bf5 {[%clk 0:02:51.1]} 8. dxc5 {[%clk 0:02:57.9]}
8... Qxc5 {[%clk 0:02:28]} 9. Qb3 {[%clk 0:02:58.1]} 9... Qb6 {[%clk 0:02:17]}
10. Nd4 {[%clk 0:02:41.9]} 10... Nxd4 {[%clk 0:02:13.6]} 11. exd4 {[%clk
0:02:35.9]} 11... Bd7 {[%clk 0:01:55.4]} 12. Be2 {[%clk 0:02:32.2]} 12... Bg7
{[%clk 0:01:54.2]} 13. O-O {[%clk 0:02:32.4]} 13... O-O {[%clk 0:01:53.3]} 14.
Rfe1 {[%clk 0:02:32.1]} 14... Rfe8 {[%clk 0:01:50.9]} 15. Qxb6 {[%clk
0:02:18.7]} 15... axb6 {[%clk 0:01:50.4]} 16. Bc7 {[%clk 0:02:18]} 16... b5
{[%clk 0:01:47.6]} 17. a3 {[%clk 0:02:18.1]} 17... Bc6 {[%clk 0:01:44.5]} 18.
Be5 {[%clk 0:02:18.4]} 18... Nd7 {[%clk 0:01:41.4]} 19. Bxg7 {[%clk 0:02:19.3]}
19... Kxg7 {[%clk 0:01:41.1]} 20. Bd3 {[%clk 0:02:11]} 20... f6 {[%clk
0:01:32.2]} 21. Re6 {[%clk 0:02:02.3]} 21... Kf7 {[%clk 0:01:28]} 22. Rae1
{[%clk 0:02:02.3]} 22... Nf8 {[%clk 0:01:26]} 23. R6e3 {[%clk 0:02:01.4]} 23...
e6 {[%clk 0:01:25.3]} 24. Nb3 {[%clk 0:01:53.9]} 24... Nd7 {[%clk 0:01:24.2]}
25. f4 {[%clk 0:01:53.1]} 25... Re7 {[%clk 0:01:21]} 26. g4 {[%clk 0:01:47.6]}
26... Rae8 {[%clk 0:01:19.4]} 27. g5 {[%clk 0:01:47.1]} 27... fxg5 {[%clk
0:01:18.2]} 28. fxg5 {[%clk 0:01:48]} 28... e5 {[%clk 0:01:18]} 29. Bf1 {[%clk
0:01:36.1]} 29... e4 {[%clk 0:01:14.8]} 30. Nd2 {[%clk 0:01:04.1]} 30... Kg7
{[%clk 0:01:13]} 31. R1e2 {[%clk 0:01:00.7]} 31... Nb6 {[%clk 0:01:11.1]} 32.
Rf2 {[%clk 0:00:59.7]} 32... Na4 {[%clk 0:01:06.4]} 33. Nb3 {[%clk 0:00:55]}
33... Rf8 {[%clk 0:01:02.7]} 34. Rxf8 {[%clk 0:00:50]} 34... Kxf8 {[%clk
0:01:02.6]} 35. Re2 {[%clk 0:00:50.9]} 35... Rf7 {[%clk 0:01:02.4]} 36. Bh3
{[%clk 0:00:39.2]} 36... Rf3 {[%clk 0:00:58.1]} 37. Bc8 {[%clk 0:00:37.1]} 37...
Nb6 {[%clk 0:00:51.4]} 38. Bg4 {[%clk 0:00:35.2]} 38... Rf4 {[%clk 0:00:50.2]}
39. h3 {[%clk 0:00:32.9]} 39... Ke7 {[%clk 0:00:43.4]} 40. Nc5 {[%clk
0:00:31.4]} 40... Na4 {[%clk 0:00:42.1]} 41. Nd3 {[%clk 0:00:31.6]} 41... Rf8
{[%clk 0:00:38.8]} 42. Ne5 {[%clk 0:00:31.9]} 42... Kd6 {[%clk 0:00:37.4]} 43.
Kg2 {[%clk 0:00:31.3]} 43... Nb6 {[%clk 0:00:36.8]} 44. b3 {[%clk 0:00:28.3]}
44... Ra8 {[%clk 0:00:19.2]} 45. Ra2 {[%clk 0:00:28.8]} 45... Be8 {[%clk
0:00:18.5]} 46. Kf2 {[%clk 0:00:24.1]} 46... Ke7 {[%clk 0:00:18.4]} 47. Ke3
{[%clk 0:00:24.1]} 47... Nc8 {[%clk 0:00:17.9]} 48. Bxc8 {[%clk 0:00:12.2]}
48... Rxc8 {[%clk 0:00:17.5]} 49. Kd2 {[%clk 0:00:12.8]} 49... Bd7 {[%clk
0:00:16.7]} 50. Ra1 {[%clk 0:00:12.1]} 50... Rf8 {[%clk 0:00:15.6]} 51. Ke3
{[%clk 0:00:12.5]} 51... Kd6 {[%clk 0:00:14]} 52. c4 {[%clk 0:00:10.3]} 52...
bxc4 {[%clk 0:00:13.6]} 53. bxc4 {[%clk 0:00:11.2]} 53... dxc4 {[%clk
0:00:13.3]} 54. Nxc4+ {[%clk 0:00:12.1]} 54... Kc7 {[%clk 0:00:13.4]} 55. Ne5
{[%clk 0:00:10]} 55... Bf5 {[%clk 0:00:12.8]} 56. d5 {[%clk 0:00:08.9]} 56...
Ra8 {[%clk 0:00:11.9]} 57. a4 {[%clk 0:00:08.3]} 57... Ra5 {[%clk 0:00:10]} 58.
Kd4 {[%clk 0:00:08.6]} 58... e3 {[%clk 0:00:10.3]} 59. Nc4 {[%clk 0:00:08.4]}
59... Ra8 {[%clk 0:00:10.1]} 60. Nxe3 {[%clk 0:00:08.8]} 60... Bxh3 {[%clk
0:00:10.2]} 61. Rh1 {[%clk 0:00:07.9]} 61... Rxa4+ {[%clk 0:00:09.8]} 62. Ke5
{[%clk 0:00:08.3]} 62... Rh4 {[%clk 0:00:09.6]} 63. Ng2 {[%clk 0:00:04.3]} 63...
Rh5 {[%clk 0:00:09]} 64. Nf4 {[%clk 0:00:03.9]} 64... Rxg5+ {[%clk 0:00:09.2]}
65. Kd4 {[%clk 0:00:04.3]} 65... Bd7 {[%clk 0:00:08]} 66. Rxh7 {[%clk 0:00:04]}
66... Kd6 {[%clk 0:00:08.1]} 67. Ne2 {[%clk 0:00:03.6]} 67... Rg4+ {[%clk
0:00:08.1]} 68. Ke3 {[%clk 0:00:03.9]} 68... b5 {[%clk 0:00:08.1]} 69. Rg7
{[%clk 0:00:03.8]} 69... b4 {[%clk 0:00:07.5]} 70. Nd4 {[%clk 0:00:04.2]} 70...
Bf5 {[%clk 0:00:06.3]} 71. Rg8 {[%clk 0:00:02.9]} 71... Kxd5 {[%clk 0:00:06.4]}
72. Rd8+ {[%clk 0:00:02.5]} 72... Kc4 {[%clk 0:00:06]} 73. Nf3 {[%clk
0:00:01.8]} 73... Kc3 {[%clk 0:00:04.7]} 74. Rb8 {[%clk 0:00:01.9]} 74... Re4+
{[%clk 0:00:03.7]} 75. Kf2 {[%clk 0:00:02]} 75... b3 {[%clk 0:00:04.1]} 76. Rb7
{[%clk 0:00:02.3]} 76... Rb4 {[%clk 0:00:04]} 77. Rc7+ {[%clk 0:00:02.5]} 77...
Kb2 {[%clk 0:00:04.1]} 78. Nd2 {[%clk 0:00:02.3]} 78... Bc2 {[%clk 0:00:04.4]}
79. Ke3 {[%clk 0:00:02.5]} 79... Kc1 {[%clk 0:00:04.8]} 80. Rh7 {[%clk
0:00:01.1]} 80... b2 {[%clk 0:00:04.3]} 81. Rh1+ {[%clk 0:00:01.6]} 81... Bd1
{[%clk 0:00:04.4]} 82. Rg1 {[%clk 0:00:02.5]} 82... b1=Q {[%clk 0:00:03.8]} 83.
Nxb1 {[%clk 0:00:03]} 83... Rxb1 {[%clk 0:00:03.8]} 84. Rxg6 {[%clk 0:00:03.9]}
84... Rb3+ {[%clk 0:00:04.2]} 85. Kd4 {[%clk 0:00:04.3]} 85... Kd2 {[%clk
0:00:04.3]} 86. Rg2+ {[%clk 0:00:04.6]} 86... Be2 {[%clk 0:00:04.5]} 87. Rh2
{[%clk 0:00:05]} 87... Rb4+ {[%clk 0:00:04.6]} 88. Kc5 {[%clk 0:00:05.3]} 88...
Rc4+ {[%clk 0:00:04.7]} 89. Kd5 {[%clk 0:00:05.7]} 89... Ra4 {[%clk 0:00:05.1]}
90. Kc5 {[%clk 0:00:05.9]} 90... Ke3 {[%clk 0:00:04.9]} 91. Kd5 {[%clk
0:00:04.9]} 91... Bd3 {[%clk 0:00:04.7]} 92. Kc5 {[%clk 0:00:05]} 92... Ra5+
{[%clk 0:00:04.2]} 93. Kb4 {[%clk 0:00:05.1]} 93... Rb5+ {[%clk 0:00:04.4]} 94.
Kc3 {[%clk 0:00:05.3]} 94... Rc5+ {[%clk 0:00:04.2]} 95. Kb4 {[%clk 0:00:05.8]}
95... Rc4+ {[%clk 0:00:04.5]} 96. Kb3 {[%clk 0:00:06.2]} 96... Rc8 {[%clk
0:00:04.3]} 97. Kb4 {[%clk 0:00:05.8]} 97... Kd4 {[%clk 0:00:03.8]} 98. Rh4+
{[%clk 0:00:06.1]} 98... Be4 {[%clk 0:00:03.4]} 99. Kb5 {[%clk 0:00:06.3]} 99...
Rb8+ {[%clk 0:00:03.5]} 100. Ka4 {[%clk 0:00:06.6]} 100... Kd5 {[%clk
0:00:02.8]} 101. Ka5 {[%clk 0:00:06.4]} 101... Kc5 {[%clk 0:00:02.4]} 102. Ka4
{[%clk 0:00:04]} 102... Bd5 {[%clk 0:00:02.5]} 103. Ka3 {[%clk 0:00:02.6]}
103... Rb3+ {[%clk 0:00:02.4]} 104. Ka4 {[%clk 0:00:03]} 104... Rb2 {[%clk
0:00:02.7]} 105. Ka5 {[%clk 0:00:03.3]} 105... Ra2+ {[%clk 0:00:02.6]} 106. Ra4
{[%clk 0:00:02.8]} 106... Rb2 {[%clk 0:00:02.5]} 107. Rh4 {[%clk 0:00:03]}
107... Rb8 {[%clk 0:00:02.5]} 108. Rh6 {[%clk 0:00:03.1]} 108... Ra8+ {[%clk
0:00:02.2]} 109. Ra6 {[%clk 0:00:02.7]} 109... Re8 {[%clk 0:00:02.6]} 110. Rh6
{[%clk 0:00:02.9]} 110... Re2 {[%clk 0:00:03.1]} 111. Rh4 {[%clk 0:00:03.3]}
111... Ra2+ {[%clk 0:00:03.5]} 112. Ra4 {[%clk 0:00:03.6]} 112... Rb2 {[%clk
0:00:03.9]} 113. Rh4 {[%clk 0:00:03.6]} 1/2-1/2

[Event "*** Titled Tuesday Blitz"]
[Site "Chess.com"]
[Date "2020.05.05"]
[Round "9"]
[White "Glidzhian_Gor"]
[Black "WastefulJustice"]
[Result "1-0"]
[WhiteElo "2500"]
[BlackElo "2361"]
[TimeControl "180+1"]
[EndTime "11:41:42 PDT"]
[Termination "Glidzhian_Gor won by resignation"]

1. e4 {[%clk 0:03:00.9]} 1... d6 {[%clk 0:02:58.9]} 2. d4 {[%clk 0:03:01]} 2...
Nf6 {[%clk 0:02:55.9]} 3. Nc3 {[%clk 0:03:01.2]} 3... c5 {[%clk 0:02:56.5]} 4.
dxc5 {[%clk 0:03:01.2]} 4... dxc5 {[%clk 0:02:53.8]} 5. Qxd8+ {[%clk 0:03:00.9]}
5... Kxd8 {[%clk 0:02:54.7]} 6. Nf3 {[%clk 0:03:00.9]} 6... Nc6 {[%clk
0:02:54.2]} 7. Ng5 {[%clk 0:03:00.3]} 7... Ke8 {[%clk 0:02:53.4]} 8. Nb5 {[%clk
0:03:00.6]} 8... Nd4 {[%clk 0:02:51.1]} 9. Nc7+ {[%clk 0:02:55.5]} 9... Kd7
{[%clk 0:02:48.1]} 10. Nxa8 {[%clk 0:02:54.7]} 10... Nxc2+ {[%clk 0:02:48]} 11.
Kd1 {[%clk 0:02:55.1]} 11... Nxa1 {[%clk 0:02:48.9]} 12. Bb5+ {[%clk 0:02:55.4]}
12... Kd6 {[%clk 0:02:46.7]} 13. Nxf7+ {[%clk 0:02:55.4]} 1-0

[Event "*** Titled Tuesday Blitz"]
[Site "Chess.com"]
[Date "2020.05.05"]
[Round "9"]
[White "LuckSlayeer"]
[Black "AsaHoffmann"]
[Result "1-0"]
[WhiteElo "2514"]
[BlackElo "2368"]
[TimeControl "180+1"]
[EndTime "11:43:05 PDT"]
[Termination "LuckSlayeer won by resignation"]

1. e4 {[%clk 0:03:00.9]} 1... d6 {[%clk 0:02:58.8]} 2. d4 {[%clk 0:03:00.8]}
2... c6 {[%clk 0:02:58]} 3. Nc3 {[%clk 0:03:00.8]} 3... a6 {[%clk 0:02:55.7]} 4.
f4 {[%clk 0:02:59.4]} 4... d5 {[%clk 0:02:55.1]} 5. Nf3 {[%clk 0:02:58.1]} 5...
Bg4 {[%clk 0:02:52.4]} 6. h3 {[%clk 0:02:55]} 6... Bxf3 {[%clk 0:02:51.6]} 7.
Qxf3 {[%clk 0:02:55.9]} 7... Nf6 {[%clk 0:02:49.5]} 8. e5 {[%clk 0:02:53.5]}
8... Nfd7 {[%clk 0:02:46.4]} 9. f5 {[%clk 0:02:53.7]} 9... Nb6 {[%clk
0:02:37.7]} 10. Bd3 {[%clk 0:02:42.9]} 10... Qc7 {[%clk 0:02:22.1]} 11. e6
{[%clk 0:02:40.3]} 11... f6 {[%clk 0:01:45.8]} 12. Bf4 {[%clk 0:02:32.8]} 12...
Qd8 {[%clk 0:01:43]} 13. Qh5+ {[%clk 0:02:32.1]} 1-0

[Event "*** Titled Tuesday Blitz"]
[Site "Chess.com"]
[Date "2020.05.05"]
[Round "9"]
[White "chesslh19"]
[Black "eightbyeightchess"]
[Result "0-1"]
[WhiteElo "2172"]
[BlackElo "2406"]
[TimeControl "180+1"]
[EndTime "11:43:55 PDT"]
[Termination "eightbyeightchess won by resignation"]

1. e4 {[%clk 0:03:00.9]} 1... e6 {[%clk 0:02:56.8]} 2. d4 {[%clk 0:03:00.4]}
2... d5 {[%clk 0:02:57.4]} 3. Nd2 {[%clk 0:03:00.7]} 3... Nf6 {[%clk 0:02:56.5]}
4. e5 {[%clk 0:03:00.7]} 4... Nfd7 {[%clk 0:02:57.1]} 5. Bd3 {[%clk 0:03:01.2]}
5... c5 {[%clk 0:02:57.7]} 6. c3 {[%clk 0:03:01.5]} 6... Nc6 {[%clk 0:02:58.3]}
7. Ne2 {[%clk 0:03:01.8]} 7... cxd4 {[%clk 0:02:58.8]} 8. cxd4 {[%clk
0:03:01.7]} 8... f6 {[%clk 0:02:59.5]} 9. exf6 {[%clk 0:03:02]} 9... Nxf6 {[%clk
0:03:00.4]} 10. Nf3 {[%clk 0:03:01.9]} 10... Qc7 {[%clk 0:03:00.9]} 11. Bf4
{[%clk 0:03:00.4]} 11... Bb4+ {[%clk 0:03:01.2]} 12. Kf1 {[%clk 0:02:48.3]}
12... Bd6 {[%clk 0:03:00.5]} 13. Bxd6 {[%clk 0:02:46.8]} 13... Qxd6 {[%clk
0:03:01.4]} 14. g3 {[%clk 0:02:43.7]} 14... O-O {[%clk 0:02:59.8]} 15. Kg2
{[%clk 0:02:43.8]} 15... e5 {[%clk 0:02:58.4]} 16. dxe5 {[%clk 0:02:42.4]} 16...
Nxe5 {[%clk 0:02:59.3]} 17. Nxe5 {[%clk 0:02:41]} 17... Qxe5 {[%clk 0:03:00.2]}
18. Qd2 {[%clk 0:02:20.8]} 18... Bg4 {[%clk 0:02:54.9]} 19. h3 {[%clk
0:01:59.8]} 19... Bf3+ {[%clk 0:02:52.9]} 20. Kxf3 {[%clk 0:01:07.6]} 20... Ne4+
{[%clk 0:02:51.9]} 21. Qf4 {[%clk 0:01:06.1]} 21... g5 {[%clk 0:02:50.4]} 22.
Qxf8+ {[%clk 0:00:55.9]} 22... Rxf8+ {[%clk 0:02:51.3]} 0-1

[Event "*** Titled Tuesday Blitz"]
[Site "Chess.com"]
[Date "2020.05.05"]
[Round "9"]
[White "SketchyMoves"]
[Black "rpragchess"]
[Result "0-1"]
[WhiteElo "2627"]
[BlackElo "2836"]
[TimeControl "180+1"]
[EndTime "11:44:13 PDT"]
[Termination "rpragchess won by resignation"]

1. b3 {[%clk 0:03:00.9]} 1... e5 {[%clk 0:02:30]} 2. Bb2 {[%clk 0:02:55.9]} 2...
Nc6 {[%clk 0:02:28.7]} 3. e3 {[%clk 0:02:56.4]} 3... Nf6 {[%clk 0:02:28.9]} 4.
Nf3 {[%clk 0:02:56.9]} 4... e4 {[%clk 0:02:28]} 5. Nd4 {[%clk 0:02:57.1]} 5...
Nxd4 {[%clk 0:02:28.5]} 6. Bxd4 {[%clk 0:02:58]} 6... d5 {[%clk 0:02:28.9]} 7.
c4 {[%clk 0:02:58]} 7... dxc4 {[%clk 0:02:24.2]} 8. Bxc4 {[%clk 0:02:57.5]} 8...
Bd6 {[%clk 0:02:24.8]} 9. Nc3 {[%clk 0:02:51.6]} 9... Bf5 {[%clk 0:02:21.2]} 10.
O-O {[%clk 0:02:50.9]} 10... Bxh2+ {[%clk 0:02:00.3]} 11. Kxh2 {[%clk
0:02:50.7]} 11... Ng4+ {[%clk 0:02:00.5]} 12. Kg3 {[%clk 0:02:37.9]} 12... Qd6+
{[%clk 0:01:59.9]} 13. f4 {[%clk 0:02:31.6]} 13... Qg6 {[%clk 0:01:59.1]} 14.
Qe2 {[%clk 0:02:15.6]} 14... O-O-O {[%clk 0:01:29.1]} 15. Rh1 {[%clk 0:02:11.9]}
15... Nxe3+ {[%clk 0:01:22.9]} 16. Kh2 {[%clk 0:02:05.4]} 16... Ng4+ {[%clk
0:01:22.5]} 17. Kg1 {[%clk 0:02:04.9]} 17... Rxd4 {[%clk 0:01:23]} 18. Nb5
{[%clk 0:02:00.5]} 18... Qb6 {[%clk 0:01:21.7]} 0-1

[Event "*** Titled Tuesday Blitz"]
[Site "Chess.com"]
[Date "2020.05.05"]
[Round "9"]
[White "Funkmaus"]
[Black "Frogo47"]
[Result "0-1"]
[WhiteElo "2210"]
[BlackElo "2397"]
[TimeControl "180+1"]
[EndTime "11:44:15 PDT"]
[Termination "Frogo47 won by resignation"]

1. d4 {[%clk 0:03:00.9]} 1... Nf6 {[%clk 0:02:56.9]} 2. Nf3 {[%clk 0:03:00.8]}
2... g6 {[%clk 0:02:56.7]} 3. g3 {[%clk 0:03:00.4]} 3... Bg7 {[%clk 0:02:56.9]}
4. Bg2 {[%clk 0:03:01]} 4... O-O {[%clk 0:02:57.5]} 5. O-O {[%clk 0:03:01.6]}
5... c5 {[%clk 0:02:58]} 6. c3 {[%clk 0:03:01.7]} 6... d6 {[%clk 0:02:52.9]} 7.
Nbd2 {[%clk 0:03:00.2]} 7... Nc6 {[%clk 0:02:52.9]} 8. a4 {[%clk 0:03:00]} 8...
Bd7 {[%clk 0:02:49.2]} 9. Nc4 {[%clk 0:02:52]} 9... cxd4 {[%clk 0:02:47.8]} 10.
cxd4 {[%clk 0:02:52.9]} 10... Rc8 {[%clk 0:02:47.8]} 11. b3 {[%clk 0:02:51.6]}
11... Na5 {[%clk 0:02:40.7]} 12. Qd3 {[%clk 0:02:35.5]} 12... Bf5 {[%clk
0:02:36.2]} 13. Qc3 {[%clk 0:02:16.2]} 13... b6 {[%clk 0:02:27.3]} 14. Qb4
{[%clk 0:01:57.7]} 14... Nd5 {[%clk 0:02:19.8]} 15. Qb5 {[%clk 0:01:57.7]} 15...
Nc3 {[%clk 0:02:18.5]} 16. Qa6 {[%clk 0:01:55.6]} 16... Nxb3 {[%clk 0:02:14]}
17. Be3 {[%clk 0:01:21.7]} 17... Nxa1 {[%clk 0:02:08.4]} 18. Rxa1 {[%clk
0:01:20.7]} 18... Nxe2+ {[%clk 0:02:08.5]} 19. Kh1 {[%clk 0:01:19.2]} 19... Bd3
{[%clk 0:02:07.2]} 0-1